fUST/lending_fUST_20240813
["ID","MTS","AMOUNT","RATE_DAILY","PERIOD"]
[334737403,1723521047272,-500.0,0.0001452,2]
[334737404,1723521047281,-500.0,0.0001452,2]
[334737405,1723521047290,-502.56,0.0001452,2]
[334737406,1723521047299,-708.42,0.0001452,2]
[334737407,1723521047308,-500.0,0.0001452,2]
[334737408,1723521047318,-500.0,0.0001452,2]
[334737409,1723521047328,-500.0,0.0001452,2]
[334737410,1723521047338,-500.0,0.0001452,2]
[334737411,1723521047348,-500.0,0.0001452,2]
[334737412,1723521047356,-500.0,0.0001452,2]
[334737413,1723521047366,-500.0,0.0001452,2]
[334737414,1723521047376,-500.0,0.0001452,2]
[334737415,1723521047386,-174.4109503,0.0001452,2]
[334737416,1723521047395,-500.0,0.0001452,2]
[334737417,1723521047405,-500.0,0.0001452,2]
[334737418,1723521047414,-500.0,0.0001452,2]
[334737419,1723521047425,-733.63,0.0001452,2]
[334737420,1723521047436,-500.0,0.0001452,2]
[334737421,1723521047445,-500.0,0.0001452,2]
[334737422,1723521047454,-500.0,0.0001452,2]
[334737423,1723521047463,-598.5,0.0001452,2]
[334737424,1723521047473,-500.0,0.0001452,2]
[334737425,1723521047482,-500.0,0.0001452,2]
[334737426,1723521047491,-500.0,0.0001452,2]
[334737427,1723521047502,-500.0,0.0001452,2]
[334737428,1723521047511,-500.0,0.0001452,2]
[334737429,1723521047520,-500.0,0.0001452,2]
[334737430,1723521047530,-500.0,0.0001452,2]
[334737431,1723521047539,-500.0,0.0001452,2]
[334737432,1723521047548,-532.08,0.0001452,2]
[334737433,1723521047558,-500.0,0.0001452,2]
[334737434,1723521047567,-834.08,0.0001452,2]
[334737435,1723521047578,-500.0,0.0001452,2]
[334737436,1723521047587,-500.0,0.0001452,2]
[334737437,1723521047596,-815.38,0.0001452,2]
[334737438,1723521047606,-686.75,0.0001452,2]
[334737439,1723521047616,-500.0,0.0001452,2]
[334737440,1723521047626,-500.0,0.0001452,2]
[334737441,1723521047635,-1060.39,0.0001452,2]
[334737442,1723521047644,-500.0,0.0001452,2]
[334737443,1723521047653,-507.06958315,0.0001452,2]
[334737444,1723521047662,-811.83,0.0001452,2]
[334737445,1723521047671,-738.31,0.0001452,2]
[334737446,1723521047681,-1718.72,0.0001452,2]
[334737447,1723521047691,-1287.22,0.0001452,2]
[334737448,1723521047701,-500.0,0.0001452,2]
[334737449,1723521047712,-500.0,0.0001452,2]
[334737450,1723521047724,-500.0,0.0001452,2]
[334737451,1723521047735,-5408.74,0.0001452,2]
[334737452,1723521047745,-500.0,0.0001452,2]
[334737453,1723521047755,-934.91,0.0001452,2]
[334737454,1723521047764,-3398.8,0.0001452,2]
[334737455,1723521047773,-873.05,0.0001452,2]
[334737456,1723521047782,-509.68,0.0001452,2]
[334737457,1723521047792,-1143.73,0.0001452,2]
[334737458,1723521047801,-500.0,0.0001452,2]
[334737459,1723521047810,-2049.8107762,0.0001452,2]
[334737460,1723521047831,-1182.3792238,0.0001452,2]
[334737461,1723521047842,-1056.74,0.0001452,2]
[334737462,1723521047852,-998.3,0.0001452,2]
[334737463,1723521047866,-500.0,0.0001452,2]
[334737464,1723521047876,-500.0,0.0001452,2]
[334737465,1723521047885,-671.24,0.0001452,2]
[334737466,1723521047895,-1163.08,0.0001452,2]
[334737467,1723521047906,-4502.61,0.0001452,2]
[334737468,1723521047915,-537.85,0.0001452,2]
[334737469,1723521047924,-1178.01,0.0001452,2]
[334737470,1723521047935,-1195.89,0.0001452,2]
[334737471,1723521047945,-500.0,0.0001452,2]
[334737472,1723521047955,-1060.65,0.0001452,2]
[334737473,1723521047964,-500.0,0.0001452,2]
[334737474,1723521047974,-818.46,0.0001452,2]
[334737475,1723521047985,-541.28,0.0001452,2]
[334737476,1723521047994,-599.43,0.0001452,2]
[334737477,1723521048004,-668.16,0.0001452,2]
[334737478,1723521048014,-557.9702799,0.0001452,2]
[334737479,1723521048023,-1623.08,0.0001452,2]
[334737480,1723521048033,-500.0,0.0001452,2]
[334737481,1723521048043,-500.0,0.0001452,2]
[334737482,1723521048053,-500.0,0.0001452,2]
[334737483,1723521048064,-717.57,0.0001452,2]
[334737484,1723521048074,-500.0,0.0001452,2]
[334737485,1723521048084,-3416.72,0.0001452,2]
[334737486,1723521048093,-754.97,0.0001452,2]
[334737487,1723521048103,-500.0,0.0001452,2]
[334737488,1723521048112,-566.93,0.0001452,2]
[334737489,1723521048122,-1513.32,0.0001452,2]
[334737490,1723521048131,-500.0,0.0001452,2]
[334737491,1723521048142,-1204.19,0.0001452,2]
[334737492,1723521048152,-500.0,0.0001452,2]
[334737493,1723521048163,-1182.65,0.0001452,2]
[334737494,1723521048173,-607.43,0.0001452,2]
[334737495,1723521048183,-500.0,0.0001452,2]
[334737496,1723521048193,-500.0,0.0001452,2]
[334737497,1723521048204,-1302.37,0.0001452,2]
[334737498,1723521048214,-500.0,0.0001452,2]
[334737499,1723521048224,-674.49,0.0001452,2]
[334737500,1723521048234,-1184.39,0.0001452,2]
[334737501,1723521048244,-1375.15,0.0001452,2]
[334737502,1723521048254,-500.0,0.0001452,2]
[334737503,1723521048264,-1211.13,0.0001452,2]
[334737504,1723521048274,-755.38,0.0001452,2]
[334737505,1723521048284,-546.5,0.0001452,2]
[334737506,1723521048293,-5110.87,0.0001452,2]
[334737507,1723521048303,-732.31,0.0001452,2]
[334737508,1723521048312,-462.27034166,0.0001452,2]
[334737509,1723521048321,-500.0,0.0001452,2]
[334737510,1723521048332,-500.0,0.0001452,2]
[334737511,1723521048341,-625.38,0.0001452,2]
[334737512,1723521048352,-500.0,0.0001452,2]
[334737513,1723521048362,-559.62,0.0001452,2]
[334737514,1723521048371,-533.47,0.0001452,2]
[334737515,1723521048381,-988.07,0.0001452,2]
[334737516,1723521048390,-500.0,0.0001452,2]
[334737517,1723521048400,-500.0,0.0001452,2]
[334737518,1723521048409,-5247.46,0.0001452,2]
[334737519,1723521048419,-827.0,0.0001452,2]
[334737520,1723521048428,-1912.66,0.0001452,2]
[334737521,1723521048438,-1257.0,0.0001452,2]
[334737522,1723521048447,-500.0,0.0001452,2]
[334737523,1723521048457,-1944.3,0.0001452,2]
[334737524,1723521048467,-944.38,0.0001452,2]
[334737525,1723521048476,-2854.24,0.0001452,2]
[334737526,1723521048486,-595.62,0.0001452,2]
[334737527,1723521048495,-500.0,0.0001452,2]
[334737528,1723521048504,-500.0,0.0001452,2]
[334737529,1723521048514,-1070.54,0.0001452,2]
[334737530,1723521048523,-625.87,0.0001452,2]
[334737531,1723521048532,-622.01832579,0.0001452,2]
[334737532,1723521048542,-196.5327387,0.00014545,2]
[334737533,1723521048551,-175.27132614,0.00014545,2]
[334737534,1723521048560,-4716.54030251,0.00014545,2]
[334737535,1723521048569,-543.3913977,0.00014545,2]
[334737536,1723521048579,-2910.95548837,0.00014545,2]
[334737537,1723521048589,-154.79103211,0.00014545,2]
[334737538,1723521048599,-10918.68838476,0.00014545,2]
[334737539,1723521048608,-534.23635652,0.00014545,2]
[334737540,1723521048617,-155.01842383,0.00014545,2]
[334737541,1723521048626,-1416.15916392,0.00014545,2]
[334737542,1723521048636,-155.51612927,0.00014545,2]
[334737543,1723521048645,-694.52815247,0.00014545,2]
[334737544,1723521048654,-202.08785835,0.00014545,2]
[334737545,1723521048663,-153.0,0.00014712,2]
[334737546,1723521048673,-500.0,0.00014726,2]
[334737547,1723521048682,-1000.0,0.00014764,2]
[334737548,1723521048692,-1000.0,0.0001477,2]
[334737549,1723521048702,-215.34032977,0.00014788,2]
[334737550,1723521048712,-542.67,0.00014794,2]
[334737551,1723521048722,-500.0,0.00014794,2]
[334737552,1723521048734,-500.0,0.00014794,2]
[334737553,1723521048745,-500.0,0.00014794,2]
[334737554,1723521048756,-500.0,0.00014794,2]
[334737555,1723521048766,-617.5,0.00014794,2]
[334737556,1723521048775,-500.0,0.00014794,2]
[334737557,1723521048785,-500.0,0.00014794,2]
[334737558,1723521048795,-502.56,0.00014794,2]
[334737559,1723521048805,-708.42,0.00014794,2]
[334737560,1723521048815,-500.0,0.00014794,2]
[334737561,1723521048826,-500.0,0.00014794,2]
[334737562,1723521048835,-500.0,0.00014794,2]
[334737563,1723521048845,-500.0,0.00014794,2]
[334737564,1723521048855,-500.0,0.00014794,2]
[334737565,1723521048868,-500.0,0.00014794,2]
[334737566,1723521048878,-500.0,0.00014794,2]
[334737567,1723521048887,-500.0,0.00014794,2]
[334737568,1723521048896,-500.0,0.00014794,2]
[334737569,1723521048906,-500.0,0.00014794,2]
[334737570,1723521048916,-500.0,0.00014794,2]
[334737571,1723521048927,-733.63,0.00014794,2]
[334737572,1723521048939,-500.0,0.00014794,2]
[334737573,1723521048949,-500.0,0.00014794,2]
[334737574,1723521048959,-500.0,0.00014794,2]
[334737575,1723521048971,-598.5,0.00014794,2]
[334737576,1723521048982,-500.0,0.00014794,2]
[334737577,1723521048993,-500.0,0.00014794,2]
[334737578,1723521049003,-500.0,0.00014794,2]
[334737579,1723521049013,-500.0,0.00014794,2]
[334737580,1723521049023,-500.0,0.00014794,2]
[334737581,1723521049032,-500.0,0.00014794,2]
[334737582,1723521049041,-500.0,0.00014794,2]
[334737583,1723521049051,-500.0,0.00014794,2]
[334737584,1723521049061,-532.08,0.00014794,2]
[334737585,1723521049070,-500.0,0.00014794,2]
[334737586,1723521049081,-834.08,0.00014794,2]
[334737587,1723521049091,-500.0,0.00014794,2]
[334737588,1723521049099,-500.0,0.00014794,2]
[334737589,1723521049109,-815.38,0.00014794,2]
[334737590,1723521049118,-686.75,0.00014794,2]
[334737591,1723521049128,-500.0,0.00014794,2]
[334737592,1723521049137,-500.0,0.00014794,2]
[334737593,1723521049147,-1060.39,0.00014794,2]
[334737594,1723521049156,-500.0,0.00014794,2]
[334737595,1723521049166,-811.83,0.00014794,2]
[334737596,1723521049176,-738.31,0.00014794,2]
[334737597,1723521049185,-1718.72,0.00014794,2]
[334737598,1723521049195,-1287.22,0.00014794,2]
[334737599,1723521049205,-216.741321,0.00014794,2]
[334737600,1723521049214,-500.0,0.00014794,2]
[334737601,1723521049223,-500.0,0.00014794,2]
[334737602,1723521049233,-5408.74,0.00014794,2]
[334737603,1723521049243,-500.0,0.00014794,2]
[334737604,1723521049253,-934.91,0.00014794,2]
[334737605,1723521049374,-3398.8,0.00014794,2]
[334737606,1723521049385,-873.05,0.00014794,2]
[334737607,1723521049395,-509.68,0.00014794,2]
[334737608,1723521049404,-1143.73,0.00014794,2]
[334737609,1723521049414,-500.0,0.00014794,2]
[334737610,1723521049424,-3232.19,0.00014794,2]
[334737611,1723521049434,-1056.74,0.00014794,2]
[334737612,1723521049444,-998.3,0.00014794,2]
[334737613,1723521049453,-500.0,0.00014794,2]
[334737614,1723521049462,-500.0,0.00014794,2]
[334737615,1723521049472,-671.24,0.00014794,2]
[334737616,1723521049482,-1163.08,0.00014794,2]
[334737617,1723521049491,-4502.61,0.00014794,2]
[334737618,1723521049500,-537.85,0.00014794,2]
[334737619,1723521049510,-1178.01,0.00014794,2]
[334737620,1723521049520,-1195.89,0.00014794,2]
[334737621,1723521049529,-500.0,0.00014794,2]
[334737622,1723521049538,-1060.65,0.00014794,2]
[334737623,1723521049548,-500.0,0.00014794,2]
[334737624,1723521049557,-818.46,0.00014794,2]
[334737625,1723521049566,-541.28,0.00014794,2]
[334737626,1723521049575,-599.43,0.00014794,2]
[334737627,1723521049585,-668.16,0.00014794,2]
[334737628,1723521049595,-500.0,0.00014794,2]
[334737629,1723521049604,-1623.08,0.00014794,2]
[334737630,1723521049613,-500.0,0.00014794,2]
[334737631,1723521049622,-500.0,0.00014794,2]
[334737632,1723521049632,-717.57,0.00014794,2]
[334737633,1723521049642,-3416.72,0.00014794,2]
[334737634,1723521049651,-500.0,0.00014794,2]
[334737635,1723521049660,-754.97,0.00014794,2]
[334737636,1723521049670,-393.54329013,0.00014794,2]
[334737637,1723521049679,-566.93,0.00014794,2]
[334737638,1723521049689,-1513.32,0.00014794,2]
[334737639,1723521049700,-500.0,0.00014794,2]
[334737640,1723521049710,-1204.19,0.00014794,2]
[334737641,1723521049721,-500.0,0.00014794,2]
[334737642,1723521049731,-1182.65,0.00014794,2]
[334737643,1723521049741,-607.43,0.00014794,2]
[334737644,1723521049751,-500.0,0.00014794,2]
[334737645,1723521049761,-500.0,0.00014794,2]
[334737646,1723521049772,-1302.37,0.00014794,2]
[334737647,1723521049781,-500.0,0.00014794,2]
[334737648,1723521049791,-674.49,0.00014794,2]
[334737649,1723521049800,-1184.39,0.00014794,2]
[334737650,1723521049809,-1375.15,0.00014794,2]
[334737651,1723521049818,-500.0,0.00014794,2]
[334737652,1723521049831,-1211.13,0.00014794,2]
[334737653,1723521049844,-755.38,0.00014794,2]
[334737654,1723521049853,-546.5,0.00014794,2]
[334737655,1723521049866,-5110.87,0.00014794,2]
[334737656,1723521049876,-732.31,0.00014794,2]
[334737657,1723521049884,-500.0,0.00014794,2]
[334737658,1723521049895,-500.0,0.00014794,2]
[334737659,1723521049904,-625.38,0.00014794,2]
[334737660,1723521049913,-500.0,0.00014794,2]
[334737661,1723521049923,-559.62,0.00014794,2]
[334737662,1723521049932,-533.47,0.00014794,2]
[334737663,1723521049943,-988.07,0.00014794,2]
[334737664,1723521049955,-500.0,0.00014794,2]
[334737665,1723521049965,-500.0,0.00014794,2]
[334737666,1723521049975,-5247.46,0.00014794,2]
[334737667,1723521049984,-827.0,0.00014794,2]
[334737668,1723521049993,-1912.66,0.00014794,2]
[334737669,1723521050003,-1257.0,0.00014794,2]
[334737670,1723521050013,-500.0,0.00014794,2]
[334737671,1723521050022,-1944.3,0.00014794,2]
[334737672,1723521050032,-944.38,0.00014794,2]
[334737673,1723521050042,-2854.24,0.00014794,2]
[334737674,1723521050052,-595.62,0.00014794,2]
[334737675,1723521050063,-500.0,0.00014794,2]
[334737676,1723521050071,-500.0,0.00014794,2]
[334737677,1723521050081,-1070.54,0.00014794,2]
[334737678,1723521050091,-625.87,0.00014794,2]
[334737679,1723521050100,-1000.0,0.00014795,2]
[334737680,1723521050110,-1000.0,0.00014801,2]
[334737681,1723521050119,-1000.0,0.00014803,2]
[334737682,1723521050128,-526.90527366,0.00014805,2]
[334737683,1723521050137,-1000.0,0.00014819,2]
[334737684,1723521050146,-1000.0,0.00014831,2]
[334737685,1723521050155,-1000.0,0.00014842,2]
[334737686,1723521050164,-1000.0,0.00014843,2]
[334737687,1723521050175,-1000.0,0.00014853,2]
[334737688,1723521050185,-1000.0,0.00014879,2]
[334737689,1723521050194,-300.16135203,0.00014894,2]
[334737690,1723521050203,-1000.0,0.00014939,2]
[334737691,1723521050213,-1000.0,0.00014958,2]
[334737692,1723521050223,-1000.0,0.00014971,2]
[334737693,1723521050232,-1000.0,0.00014993,2]
[334737694,1723521050242,-184.50034628,0.00015,2]
[334737695,1723521050251,-2852.7407087,0.00015,2]
[334737696,1723521050260,-1110.12328868,0.00015,2]
[334737697,1723521050269,-760.60485345,0.00015,2]
[334737698,1723521050278,-336.59268156,0.00015,2]
[334737699,1723521050287,-723.76255161,0.00015,2]
[334737700,1723521050296,-1576.67467559,0.0001501,2]
[334737701,1723521050306,-153.0,0.00015066,2]
[334737702,1723521050315,-209.7514371,0.00015066,2]
[334737703,1723521050325,-542.67,0.00015068,2]
[334737704,1723521050335,-500.0,0.00015068,2]
[334737705,1723521050344,-500.0,0.00015068,2]
[334737706,1723521050353,-500.0,0.00015068,2]
[334737707,1723521050363,-500.0,0.00015068,2]
[334737708,1723521050372,-617.5,0.00015068,2]
[334737709,1723521050382,-487.41482637,0.00015068,2]
[334737710,1723521050392,-500.0,0.00015068,2]
[334737711,1723521050401,-502.56,0.00015068,2]
[334737712,1723521050410,-708.42,0.00015068,2]
[334737713,1723521050419,-500.0,0.00015068,2]
[334737714,1723521050429,-500.0,0.00015068,2]
[334737715,1723521050438,-500.0,0.00015068,2]
[334737716,1723521050447,-500.0,0.00015068,2]
[334737717,1723521050457,-196.4678634,0.00015068,2]
[334737718,1723521050466,-500.0,0.00015068,2]
[334737719,1723521050476,-500.0,0.00015068,2]
[334737720,1723521050486,-500.0,0.00015068,2]
[334737721,1723521050495,-500.0,0.00015068,2]
[334737722,1723521050504,-500.0,0.00015068,2]
[334737723,1723521050513,-500.0,0.00015068,2]
[334737724,1723521050522,-733.63,0.00015068,2]
[334737725,1723521050531,-500.0,0.00015068,2]
[334737726,1723521050540,-500.0,0.00015068,2]
[334737727,1723521050550,-500.0,0.00015068,2]
[334737728,1723521050559,-598.5,0.00015068,2]
[334737729,1723521050568,-500.0,0.00015068,2]
[334737730,1723521050578,-500.0,0.00015068,2]
[334737731,1723521050588,-527.82662847,0.00015068,2]
[334737732,1723521050597,-500.0,0.00015068,2]
[334737733,1723521050606,-500.0,0.00015068,2]
[334737734,1723521050615,-500.0,0.00015068,2]
[334737735,1723521050625,-500.0,0.00015068,2]
[334737736,1723521050635,-500.0,0.00015068,2]
[334737737,1723521050644,-532.08,0.00015068,2]
[334737738,1723521050654,-427.58417621,0.00015068,2]
[334737739,1723521050663,-834.08,0.00015068,2]
[334737740,1723521050672,-500.0,0.00015068,2]
[334737741,1723521050681,-500.0,0.00015068,2]
[334737742,1723521050690,-815.38,0.00015068,2]
[334737743,1723521050700,-686.75,0.00015068,2]
[334737744,1723521050710,-500.0,0.00015068,2]
[334737745,1723521050719,-250.83968501,0.00015068,2]
[334737746,1723521050729,-1060.39,0.00015068,2]
[334737747,1723521050738,-339.53329685,0.00015068,2]
[334737748,1723521050748,-811.83,0.00015068,2]
[334737749,1723521050758,-738.31,0.00015068,2]
[334737750,1723521050767,-1718.72,0.00015068,2]
[334737751,1723521050778,-1287.22,0.00015068,2]
[334737752,1723521050787,-500.0,0.00015068,2]
[334737753,1723521050798,-500.0,0.00015068,2]
[334737754,1723521050807,-2652.48676269,0.00015068,2]
[334737755,1723521051077,-500.0,0.00013972,2]
[334737756,1723521051086,-318.13,0.00014246,2]
[334737757,1723521051396,-154.74467129,9.999e-05,2]
[334737758,1723521051407,-500.0,0.00013698,2]
[334737759,1723521051419,-181.87,0.00014246,2]
[334737760,1723521051429,-519.54,0.0001452,2]
[334737761,1723521051440,-1289.99532871,0.00014821,2]
[334737762,1723521051570,-325.33863209,0.00014821,2]
[334737763,1723521051583,-273.37336231,0.00014821,2]
[334737765,1723521102876,500.0,0.0001518,7]
[334737766,1723521102924,500.0,0.0001518,7]
[334737767,1723521103559,500.0,0.0001518,7]
[334737768,1723521103943,500.0,0.0001518,7]
[334737769,1723521104683,500.0,0.0001518,7]
[334737770,1723521104725,372.54687427,0.0001518,7]
[334737775,1723522035126,-592.0143569,9.285e-05,2]
[334737776,1723522035148,-559.3307247,9.379e-05,2]
[334737777,1723522041476,744.0033246,8.797e-05,2]
[334737779,1723522103730,16305.56528498,8.797e-05,2]
[334737780,1723522115436,3001.57363421,8.797e-05,2]
[334737781,1723522119790,405.19320777,8.797e-05,2]
[334737782,1723522124889,834.32224871,8.797e-05,2]
[334737783,1723522137076,183.262242,8.863e-05,2]
[334737784,1723522137277,183.262242,8.887e-05,2]
[334737785,1723522138432,223.78071941,8.797e-05,2]
[334737786,1723522148781,510.06692442,8.797e-05,2]
[334737787,1723522150639,183.262242,8.822e-05,2]
[334737788,1723522163395,13769.0329906,8.246e-05,2]
[334737789,1723522166443,183.262242,8.822e-05,2]
[334737790,1723522169244,-183.262242,8.912e-05,2]
[334737791,1723522169268,-183.262242,8.936e-05,2]
[334737792,1723522169290,-183.262242,8.96e-05,2]
[334737793,1723522169313,-183.262242,8.984e-05,2]
[334737794,1723522169334,-183.262242,9.009e-05,2]
[334737795,1723522169355,-183.262242,9.033e-05,2]
[334737796,1723522169379,-183.262242,9.057e-05,2]
[334737797,1723522169403,-183.262242,9.082e-05,2]
[334737798,1723522169427,-183.262242,9.106e-05,2]
[334737799,1723522169450,-183.262242,9.13e-05,2]
[334737800,1723522169472,-183.262242,9.155e-05,2]
[334737801,1723522169493,-183.262242,9.179e-05,2]
[334737802,1723522169515,-183.262242,9.203e-05,2]
[334737803,1723522169536,-183.262242,9.228e-05,2]
[334737804,1723522169558,-183.262242,9.252e-05,2]
[334737805,1723522169580,-183.262242,9.276e-05,2]
[334737806,1723522169601,-183.262242,9.3e-05,2]
[334737807,1723522169622,-183.262242,9.325e-05,2]
[334737808,1723522169642,-32.6836322,9.379e-05,2]
[334737809,1723522169664,-2751.7020396,9.428e-05,2]
[334737810,1723522169686,-300.0,9.539e-05,2]
[334737811,1723522169706,-300.0,9.539e-05,2]
[334737812,1723522169728,-2381.5808732,9.54e-05,2]
[334737813,1723522169751,-24900.0,9.706e-05,2]
[334737814,1723522169772,-240.87734831,9.999e-05,2]
[334737815,1723522169793,-197.39039312,9.999e-05,2]
[334737816,1723522169814,-250.59023246,9.999e-05,2]
[334737817,1723522169835,-192.32022613,9.999e-05,2]
[334737818,1723522169857,-189.9631639,9.999e-05,2]
[334737819,1723522169878,-154.74467129,9.999e-05,2]
[334737820,1723522169900,-155.48334812,9.999e-05,2]
[334737821,1723522169922,-183.724255,0.00010337,2]
[334737822,1723522169943,-183.724255,0.00010389,2]
[334737823,1723522169964,-420.0,0.00010493,2]
[334737824,1723522169985,-302.0,0.00010493,2]
[334737825,1723522170006,-16305.56528498,0.00010663,2]
[334737826,1723522170027,-358.97187806,0.00010663,2]
[334737827,1723522170048,-513.89,0.00010959,2]
[334737828,1723522170068,-428.24,0.00010959,2]
[334737829,1723522170088,-356.87,0.00010959,2]
[334737830,1723522170108,-297.39,0.00010959,2]
[334737831,1723522170131,-247.82,0.00010959,2]
[334737832,1723522170151,-206.52,0.00010959,2]
[334737833,1723522170172,-172.1,0.00010959,2]
[334737834,1723522170192,-860.52,0.00010959,2]
[334737835,1723522170217,-180.97678283,0.00011442,2]
[334737836,1723522170240,-587.0,0.00011542,2]
[334737837,1723522170262,-180.97678282,0.00012514,2]
[334737838,1723522170283,-823.0,0.00012696,2]
[334737839,1723522170306,-1560.69483516,0.000129,2]
[334737840,1723522170328,-1560.69483516,0.00012928,2]
[334737841,1723522170348,-1999.99999952,0.00013,2]
[334737842,1723522170369,-10946.16029522,0.00013586,2]
[334737843,1723522172094,-165.69067667,0.00010663,2]
[334737844,1723522179286,110.82218055,9.999e-05,2]
[334737869,1723522232087,-423.70171104,9.899e-05,2]
[334737870,1723522232098,-423.70171104,9.999e-05,2]
[334737872,1723522232108,-963.26514221,9.999e-05,2]
[334737873,1723522232118,-321.28100684,9.999e-05,2]
[334737875,1723522232127,-155.26280289,0.0001212,2]
[334737877,1723522232137,-189.9631639,0.0001212,2]
[334737878,1723522232147,-9600.02365164,0.0001212,2]
[334737880,1723522232159,-510.30323151,0.0001212,2]
[334737881,1723522232200,-586.23740997,0.0001212,2]
[334737944,1723522238496,-543.67907992,9.999e-05,2]
[334737946,1723522238506,-5609.00099186,0.0001212,2]
[334737948,1723522238515,-9299.65240833,0.00013586,2]
[334737950,1723522238524,-20245.81270354,0.00013589,2]
[334737952,1723522238533,-2772.64366949,0.00013592,2]
[334738029,1723522240601,-17473.16903405,0.00013592,2]
[334738030,1723522240611,-20245.81270354,0.00013595,2]
[334738031,1723522240620,-20245.81270354,0.00013598,2]
[334738032,1723522240630,-1491.8461146,0.00013598,2]
[334738033,1723522240639,-35603.28115332,0.00013598,2]
[334738034,1723522240648,-200.0,0.00013673,2]
[334738035,1723522240657,-200.0,0.00013673,2]
[334738036,1723522240666,-200.0,0.00013673,2]
[334738037,1723522240675,-200.0,0.00013673,2]
[334738038,1723522240685,-200.0,0.00013673,2]
[334738039,1723522240694,-9223.41928774,0.00013676,2]
[334738040,1723522240702,-72607.31274307,0.00013676,2]
[334738041,1723522240714,-116897.22167093,0.00013676,2]
[334738042,1723522240723,-66343.6315221,0.00013686,2]
[334738043,1723522240733,-34668.72294084,0.00013688,2]
[334738107,1723522246735,-257.99962192,9.9e-05,2]
[334738108,1723522246747,-665.04001235,0.0001212,2]
[334738109,1723522246757,-646.46036573,0.00013688,2]
[334738139,1723522777558,209.86142088,0.00022,60]
[334738140,1723522886895,-273.37336231,9.701e-05,2]
[334738141,1723522886918,-532.8664081,9.895e-05,2]
[334738142,1723522886943,-123.76022959,9.998e-05,2]
[334738145,1723523254169,-300.0,9.21e-05,2]
[334738146,1723523254194,-300.0,9.21e-05,2]
[334738147,1723523254221,-22590.07010189,9.211e-05,2]
[334738157,1723523350169,-314.90249502,0.000212,30]
[334738158,1723523350195,-4353.77578525,0.00022,30]
[334738159,1723523352172,-187.38326,9.066e-05,2]
[334738160,1723523352196,-273.37336231,9.119e-05,2]
[334738161,1723523352219,-300.0,9.21e-05,2]
[334738162,1723523352241,-300.0,9.21e-05,2]
[334738163,1723523352263,-2309.92989811,9.211e-05,2]
[334738164,1723523352284,-11287.79222402,9.211e-05,2]
[334738165,1723523352306,-170.79399998,9.211e-05,2]
[334738166,1723523352326,-2111.27572321,9.211e-05,2]
[334738167,1723523352347,-223.78047123,9.211e-05,2]
[334738168,1723523352370,-187.38326,9.538e-05,2]
[334738169,1723523352391,-349.4635156,9.824e-05,2]
[334738170,1723523352413,-898.03401982,9.999e-05,2]
[334738171,1723523352435,-160.3458083,9.999e-05,2]
[334738172,1723523352457,-850.36837131,9.999e-05,2]
[334738173,1723523352479,-250.59023246,9.999e-05,2]
[334738174,1723523352498,-154.74467129,9.999e-05,2]
[334738175,1723523352520,-342.43792084,9.999e-05,2]
[334738176,1723523352542,-189.9631639,9.999e-05,2]
[334738177,1723523352567,-188.45659018,9.999e-05,2]
[334738178,1723523352591,-846.46724827,9.999e-05,2]
[334738179,1723523352612,-154.79103211,9.999e-05,2]
[334738180,1723523352635,-154.74467129,9.999e-05,2]
[334738181,1723523352659,-636.72640188,9.999e-05,2]